bitfinex/quotes_BTCUSD_20250206
["timestamp","ask_amount","ask_price","bid_price","bid_amount"]
[1738874893913,0.19273699,97160.0,97148.0,0.45848323]
[1738874894248,0.19273699,97160.0,97148.0,0.51741192]
[1738874894450,0.205853,97157.0,97148.0,0.51241192]
[1738874894604,0.19273699,97160.0,97148.0,0.49485192]
[1738874894783,0.1544,97150.0,97148.0,0.50085192]
[1738874894990,0.1544,97150.0,97148.0,0.42375192]
[1738874895212,0.03625718,97149.0,97148.0,0.42675192]
[1738874895419,0.0002,97149.0,97148.0,0.42675192]
[1738874895619,0.154602,97149.0,97148.0,0.17475192]
[1738874895818,0.0002,97149.0,97148.0,0.156395]
[1738874896338,0.0002,97149.0,97148.0,0.151395]
[1738874896539,0.0002,97149.0,97148.0,0.155395]
[1738874897106,0.0002,97149.0,97148.0,0.164395]
[1738874897309,0.0002,97149.0,97148.0,0.155395]
[1738874897726,0.03625718,97149.0,97148.0,0.160395]
[1738874897922,0.03625718,97149.0,97148.0,0.164395]
[1738874898127,0.03625718,97149.0,97148.0,0.05289135]
[1738874898335,0.0002,97149.0,97148.0,0.05289135]
[1738874898542,0.01074505,97149.0,97148.0,0.159395]
[1738874898745,0.0002,97149.0,97148.0,0.150395]
[1738874899391,0.0002,97149.0,97148.0,0.146395]
[1738874899592,0.0002,97149.0,97148.0,0.148395]
[1738874900048,0.154602,97149.0,97148.0,0.12333494]
[1738874900240,0.154602,97149.0,97148.0,0.13233494]
[1738874900438,0.154602,97149.0,97148.0,0.12333494]
[1738874900586,0.19171905,97149.0,97148.0,0.12933494]
[1738874900789,0.19171905,97149.0,97148.0,0.12733494]
[1738874901166,0.19171905,97149.0,97148.0,0.02483129]
[1738874901415,0.19171905,97149.0,97148.0,0.02583129]
[1738874901606,0.154602,97149.0,97148.0,0.02583129]
[1738874902287,0.154602,97149.0,97148.0,0.02483129]
[1738874902434,0.154602,97149.0,97148.0,0.01883129]
[1738874902659,0.154602,97149.0,97148.0,0.001]
[1738874903072,0.22017652,97149.0,97148.0,0.001]
[1738874903295,0.1777086,97149.0,97148.0,0.001]
[1738874903910,0.023,97148.0,97140.0,0.00022386]
[1738874904138,0.177414,97141.0,97140.0,0.00022386]
[1738874905033,0.154414,97141.0,97140.0,0.00122386]
[1738874905175,0.154414,97141.0,97140.0,0.10372751]
[1738874905747,0.154414,97141.0,97140.0,0.10672751]
[1738874905866,0.154414,97141.0,97140.0,0.10872751]
[1738874907492,0.16477512,97141.0,97140.0,0.10872751]
[1738874907694,0.01036112,97141.0,97140.0,0.10872751]
[1738874907901,0.0003066,97149.0,97140.0,0.10872751]
[1738874908102,0.01059842,97149.0,97141.0,0.18070365]
[1738874908288,0.0003066,97149.0,97141.0,0.19950868]
[1738874908489,0.154413,97142.0,97141.0,0.12130868]
[1738874910032,0.154413,97142.0,97141.0,0.01880503]
[1738874910226,0.177413,97142.0,97141.0,0.01880503]
[1738874910396,0.23636046,97142.0,97141.0,0.01880503]
[1738874910607,0.23636046,97142.0,97140.0,0.00022386]
[1738874910969,0.177413,97142.0,97141.0,0.003]
[1738874911177,0.154406,97146.0,97141.0,0.10450365]
[1738874911375,0.04992232,97146.0,97142.0,0.10250365]
[1738874911591,0.0003066,97149.0,97142.0,0.10250365]
[1738874911805,0.2061766,97149.0,97142.0,0.10250365]
[1738874912010,0.0003066,97149.0,97142.0,0.10250365]
[1738874913624,0.15441,97144.0,97143.0,0.018827]
[1738874913786,0.17741,97144.0,97143.0,0.018827]
[1738874913996,0.32741,97144.0,97143.0,0.018827]
[1738874914202,0.533294,97143.0,97142.0,0.006]
[1738874914560,0.327414,97141.0,97140.0,0.00022386]
[1738874914759,0.327414,97141.0,97129.0,0.00022386]
[1738874914760,0.154432,97130.0,97129.0,0.00022386]
[1738874914964,0.327432,97130.0,97129.0,0.00068544]
[1738874916393,0.457332,97130.0,97129.0,0.00068544]
[1738874916950,0.457332,97130.0,97129.0,0.00368544]
[1738874917127,0.546246,97130.0,97129.0,0.00468544]
[1738874917330,0.546246,97130.0,97129.0,0.00168544]
[1738874917530,0.154454,97116.0,97115.0,0.09106696]
[1738874917805,0.177454,97116.0,97115.0,0.09152869]
[1738874918324,0.154454,97116.0,97115.0,0.00046173]
[1738874918459,0.190493,97116.0,97115.0,0.00046173]
[1738874918659,0.190493,97116.0,97115.0,0.00146173]
[1738874919291,0.213493,97116.0,97115.0,0.00146173]
[1738874919691,0.213493,97116.0,97115.0,0.00446173]
[1738874919897,0.18789399,97116.0,97115.0,0.00446173]
[1738874920314,0.16489399,97116.0,97115.0,0.00446173]
[1738874921263,0.18789399,97116.0,97115.0,0.00446173]
[1738874922361,0.33789399,97116.0,97115.0,0.00446173]
[1738874922561,0.41859399,97116.0,97115.0,0.00446173]
[1738874922787,0.55063979,97116.0,97115.0,0.00446173]
[1738874923343,0.55063979,97116.0,97115.0,0.00346173]
[1738874923548,0.56063979,97116.0,97115.0,0.00046173]
[1738874924110,0.56063979,97116.0,97092.0,0.08334071]
[1738874924111,0.15,97109.0,97092.0,0.08334071]
[1738874924318,0.304491,97093.0,97092.0,0.08380256]
[1738874924528,0.3555385,97093.0,97092.0,0.08380256]
[1738874924733,0.3785385,97093.0,97092.0,0.00046185]
[1738874925089,0.3785385,97093.0,97092.0,0.00056916]
[1738874925731,0.327491,97093.0,97092.0,0.00056916]
[1738874926723,0.154491,97093.0,97092.0,0.00056916]
[1738874926927,0.19266603,97102.0,97092.0,0.10307281]
[1738874927125,0.15449,97094.0,97092.0,0.00156916]
[1738874927326,0.0360474,97093.0,97092.0,0.00156916]
[1738874927911,0.15449,97094.0,97092.0,0.10307281]
[1738874930039,0.15449,97094.0,97092.0,0.10407281]
[1738874930185,0.15449,97094.0,97092.0,0.10507281]
[1738874930713,0.15449,97094.0,97092.0,0.10407281]
[1738874930919,0.205936,97118.0,97092.0,0.10407281]
[1738874930920,0.19266603,97102.0,97093.0,0.10250365]
[1738874931241,0.205973,97100.0,97093.0,0.10250365]
[1738874931461,0.22738023,97102.0,97093.0,0.10250365]
[1738874931749,0.22738023,97102.0,97094.0,0.00010731]
[1738874931978,0.19266603,97102.0,97095.0,0.18520365]
[1738874932151,0.19266603,97110.0,97101.0,0.10250365]
[1738874932328,0.19266603,97120.0,97103.0,0.10250365]
[1738874932530,0.19266603,97120.0,97113.0,0.10250365]
[1738874932732,0.19266603,97120.0,97114.0,0.00010731]
[1738874933042,0.02070465,97150.0,97115.0,0.10250365]
[1738874933043,0.154454,97116.0,97115.0,0.10250365]
[1738874933186,0.154456,97115.0,97114.0,0.00010731]
[1738874933371,0.19150428,97115.0,97114.0,0.00010731]
[1738874933819,0.36450428,97115.0,97114.0,0.00010731]
[1738874934172,0.36450428,97115.0,97114.0,0.00510731]
[1738874934375,0.36450428,97115.0,97114.0,0.00010731]
[1738874935222,0.21450428,97115.0,97114.0,0.00010731]
[1738874935509,0.154456,97115.0,97114.0,0.10261096]
[1738874936115,0.154456,97115.0,97114.0,0.10561096]
[1738874936348,0.154456,97115.0,97114.0,0.10261096]
[1738874936493,0.1904954,97115.0,97114.0,0.10261096]
[1738874937090,0.1904954,97115.0,97114.0,0.10461096]
[1738874937506,0.154456,97115.0,97114.0,0.10461096]
[1738874939308,0.1545629,97115.0,97114.0,0.10561096]
[1738874940061,0.1775629,97115.0,97114.0,0.00310731]
[1738874940944,0.1775629,97115.0,97114.0,3.1e-07]
[1738874941256,0.18806476,97115.0,97114.0,3.1e-07]
[1738874941878,0.09940972,97115.0,97092.0,0.00068634]
[1738874942087,0.09940972,97115.0,97093.0,0.10250365]
[1738874942088,0.205971,97101.0,97093.0,0.10250365]
[1738874942290,0.154491,97093.0,97092.0,0.00068634]
[1738874942488,0.154491,97093.0,97092.0,0.10318999]
[1738874943932,0.154491,97093.0,97092.0,0.10718999]
[1738874944302,0.154491,97093.0,97092.0,0.10818999]
[1738874944521,0.2317337,97093.0,97092.0,0.10818999]
[1738874944729,0.2317337,97093.0,97092.0,0.00568634]
[1738874944935,0.3817337,97093.0,97092.0,0.00568634]
[1738874945039,0.4047337,97093.0,97092.0,0.00568634]
[1738874945256,0.4047337,97093.0,97092.0,0.00068634]
[1738874945487,0.41519505,97093.0,97092.0,0.00368634]
[1738874945698,0.41519505,97093.0,97092.0,0.00468634]
[1738874945895,0.41519505,97093.0,97092.0,3.4e-07]
[1738874946109,0.154521,97074.0,97071.0,0.08334071]
[1738874946318,0.1905744,97074.0,97073.0,0.00068711]
[1738874946521,0.3405744,97074.0,97073.0,0.00068711]
[1738874947555,0.01,97073.0,97034.0,0.0771]
[1738874947799,0.01,97073.0,97057.0,0.00068794]
[1738874947800,0.327546,97058.0,97057.0,0.00068794]
[1738874948071,0.3809053,97058.0,97057.0,0.00068794]
[1738874949054,0.3829053,97058.0,97057.0,0.00068794]
[1738874949277,0.3809053,97058.0,97057.0,0.00068794]
[1738874949505,0.3909053,97058.0,97057.0,0.00068794]
[1738874949658,0.49540895,97058.0,97057.0,0.00068794]
[1738874950003,0.50340895,97058.0,97057.0,0.00068794]
[1738874950236,0.50640895,97058.0,97057.0,0.00068794]
[1738874950455,0.59249863,97058.0,97057.0,0.00068794]
[1738874950868,0.59149863,97058.0,97057.0,0.00068794]
[1738874951496,0.58949863,97058.0,97057.0,0.00068794]
[1738874951824,0.58949863,97058.0,97024.0,0.00037148]
[1738874951825,0.01,97046.0,97024.0,0.00037148]
[1738874952041,0.33757,97043.0,97042.0,8.6e-07]
[1738874952279,0.52534491,97043.0,97042.0,8.6e-07]
[1738874952955,0.52534491,97043.0,97042.0,0.00100086]
[1738874953397,0.52734491,97043.0,97042.0,8.6e-07]
[1738874954280,0.52534491,97043.0,97042.0,8.6e-07]
[1738874954524,0.304588,97032.0,97024.0,0.00037148]
[1738874954721,0.327588,97032.0,97024.0,0.00037148]
[1738874955126,0.44009165,97032.0,97024.0,0.00037148]
[1738874957031,0.327588,97032.0,97024.0,0.00037148]
[1738874957222,0.304588,97032.0,97024.0,0.00037148]
[1738874957422,0.3992691,97032.0,97024.0,0.00037148]
[1738874958680,0.41378674,97032.0,97024.0,0.00037148]
[1738874958886,0.34210564,97032.0,97024.0,0.00037148]
[1738874959375,0.33810564,97032.0,97024.0,0.00037148]
[1738874961267,0.33910564,97032.0,97031.0,0.00122386]
[1738874961783,0.33910564,97032.0,97031.0,0.00022386]
[1738874961992,0.34310564,97032.0,97031.0,0.00022386]
[1738874962354,0.17010564,97032.0,97031.0,0.00022386]
[1738874962625,0.19510564,97032.0,97031.0,0.00022386]
[1738874962785,0.18910564,97032.0,97031.0,0.00022386]
[1738874963185,0.18810564,97032.0,97031.0,0.00022386]
[1738874963395,0.19010564,97032.0,97031.0,0.00022386]
[1738874963593,0.4153385,97032.0,97031.0,0.00022386]
[1738874963853,0.4133385,97032.0,97031.0,0.00022386]
[1738874964198,0.4153385,97032.0,97031.0,0.00122386]
[1738874964640,0.4133385,97032.0,97031.0,0.00022386]
[1738874965627,0.4133385,97032.0,97031.0,0.00122386]
[1738874966369,0.4133385,97032.0,97031.0,0.00022386]
[1738874966752,0.4163385,97032.0,97031.0,0.00022386]
[1738874967194,0.51884215,97032.0,97031.0,0.00022386]
[1738874967391,0.304599,97025.0,97024.0,0.00014762]
[1738874967752,0.327599,97025.0,97024.0,0.00014762]
[1738874968557,0.348648,97025.0,97024.0,0.00014762]
[1738874968881,0.349648,97025.0,97024.0,0.00014762]
[1738874969817,0.350648,97025.0,97024.0,0.00014762]
[1738874970045,0.45315165,97025.0,97024.0,0.00014762]
[1738874970410,0.350648,97025.0,97024.0,0.00014762]
[1738874970856,0.306599,97025.0,97024.0,0.00014762]
[1738874971083,0.305599,97025.0,97024.0,0.00014762]
[1738874971258,0.304599,97025.0,97024.0,0.00014762]
[1738874971459,0.328599,97025.0,97024.0,0.00014762]
[1738874971683,0.42434786,97025.0,97024.0,0.00014762]
[1738874973271,0.42534786,97025.0,97024.0,0.00014762]
[1738874974404,0.52785151,97025.0,97024.0,6.2e-07]
[1738874974631,0.53785151,97025.0,97024.0,6.2e-07]
[1738874974822,0.53785151,97025.0,97011.0,0.00022386]
[1738874974823,0.15,97017.0,97011.0,3.986e-05]
[1738874975043,0.32762,97012.0,97011.0,3.986e-05]
[1738874975280,0.43012365,97012.0,97011.0,3.986e-05]
[1738874975481,0.27550365,97012.0,97002.0,0.00022393]
[1738874975789,0.327634,97003.0,97002.0,0.00022393]
[1738874975990,0.4016315,97003.0,97002.0,0.00022393]
[1738874976347,0.4020942,97003.0,97002.0,0.00022393]
[1738874977009,0.4030942,97003.0,97002.0,0.00022393]
[1738874977356,0.4020942,97003.0,97002.0,0.00022393]
[1738874977817,0.4030942,97003.0,97002.0,0.00022393]
[1738874978380,0.4040942,97003.0,97002.0,0.00022393]
[1738874978857,0.50659785,97003.0,97002.0,0.00022393]
[1738874979055,0.304647,96995.0,96979.0,0.08334071]
[1738874979229,0.423268,96995.0,96979.0,0.08334071]
[1738874979914,0.327647,96995.0,96979.0,0.08334071]
[1738874980337,0.304647,96995.0,96979.0,0.08334071]
[1738874980563,0.304647,96995.0,96994.0,0.07612386]
[1738874981614,0.327647,96995.0,96994.0,0.00422386]
[1738874982456,0.327647,96995.0,96994.0,0.00122386]
[1738874982728,0.327647,96995.0,96994.0,0.00522386]
[1738874982935,0.304647,96995.0,96994.0,0.00422386]
[1738874983160,0.3941132,96995.0,96994.0,0.00422386]
[1738874983650,0.4181132,96995.0,96994.0,0.00422386]
[1738874983944,0.4181132,96995.0,96994.0,0.00022386]
[1738874984142,0.307647,96995.0,96994.0,0.10272751]
[1738874984587,0.001,96995.0,96994.0,0.14942751]
[1738874984794,0.003,96995.0,96994.0,0.38517551]
[1738874984996,0.002,96995.0,96994.0,0.41664424]
[1738874985359,0.003,96995.0,96994.0,0.41764424]
[1738874985560,0.001,96995.0,96994.0,0.41664424]
[1738874985785,0.0004627,97003.0,96994.0,0.33554424]
[1738874986014,0.154641,96999.0,96995.0,0.21027238]
[1738874986334,0.154642,96998.0,96995.0,0.21027238]
[1738874986891,0.327647,96995.0,96994.0,0.00722386]
[1738874987129,0.39964288,96995.0,96994.0,0.00722386]
[1738874987325,0.39964288,96995.0,96994.0,0.00222386]
[1738874987534,0.40064288,96995.0,96994.0,0.01122386]
[1738874987666,0.39964288,96995.0,96994.0,0.00222386]
[1738874988258,0.39964288,96995.0,96994.0,0.00022386]
[1738874988703,0.39964288,96995.0,96994.0,0.00222386]
[1738874988909,0.39964288,96995.0,96994.0,0.00022386]
[1738874989284,0.39964288,96995.0,96994.0,0.00222386]
[1738874990131,0.327647,96995.0,96994.0,0.00222386]
[1738874991148,0.33409685,96995.0,96994.0,0.00222386]
[1738874991987,0.33409685,96995.0,96994.0,0.00022386]
[1738874992432,0.4506005,96995.0,96994.0,8.6e-07]
[1738874992871,0.4496005,96995.0,96994.0,8.6e-07]
[1738874993084,0.56210415,96995.0,96994.0,8.6e-07]
[1738874993558,0.55910415,96995.0,96994.0,8.6e-07]
[1738874993724,0.56010415,96995.0,96994.0,8.6e-07]
[1738874993930,0.56310415,96995.0,96994.0,8.6e-07]
[1738874994489,0.34809685,96995.0,96994.0,8.6e-07]
[1738874995544,0.4506005,96995.0,96994.0,8.6e-07]
[1738874995724,0.4596005,96995.0,96994.0,8.6e-07]
[1738874996125,0.4606005,96995.0,96994.0,8.6e-07]
[1738874996455,0.45415065,96995.0,96994.0,8.6e-07]
[1738874996614,0.5526543,96995.0,96994.0,8.6e-07]
[1738874996814,0.5536543,96995.0,96994.0,8.6e-07]
[1738874997001,0.5566543,96995.0,96994.0,8.6e-07]
[1738874997200,0.5536543,96995.0,96994.0,8.6e-07]
[1738874997407,0.5566543,96995.0,96994.0,8.6e-07]
[1738874997817,0.5567613,96995.0,96994.0,8.6e-07]
[1738874999605,0.5467613,96995.0,96994.0,8.6e-07]
[1738874999982,0.43425765,96995.0,96994.0,8.6e-07]
[1738875000183,0.158754,96995.0,96994.0,8.6e-07]
[1738875000386,0.004107,96995.0,96994.0,0.14760451]
[1738875000616,0.004107,96995.0,96994.0,0.22940451]
[1738875000945,0.004107,96995.0,96994.0,0.38405251]
[1738875001164,0.206137,97023.0,97002.0,0.154635]
[1738875001371,0.12868077,97030.0,97002.0,0.41532465]
[1738875001569,0.12868077,97030.0,97002.0,0.13398965]
[1738875001722,0.154595,97028.0,97022.0,0.1267]
[1738875001922,0.39740846,97029.0,97023.0,0.10250365]
[1738875002144,0.09281546,97029.0,97023.0,0.10250365]
[1738875002496,0.154598,97026.0,97023.0,0.10250365]
[1738875002696,0.09281546,97029.0,97023.0,0.10250365]
[1738875002902,0.24740946,97029.0,97023.0,0.10250365]
[1738875003103,0.1546,97024.0,97023.0,0.10250365]
[1738875003304,0.1546,97024.0,97022.0,0.1267]
[1738875003575,0.1546,97024.0,97022.0,0.22920365]
[1738875004175,0.000107,97025.0,97023.0,0.10250365]
[1738875004352,0.000107,97025.0,97023.0,0.10650365]
[1738875004553,0.154707,97025.0,97023.0,0.10250365]
[1738875004755,0.04536535,97024.0,97023.0,0.10250365]
[1738875004984,0.154707,97025.0,97023.0,0.10250365]
[1738875005283,0.154707,97025.0,97023.0,0.10350365]
[1738875005599,0.154707,97025.0,97022.0,0.1267]
[1738875005759,0.154602,97023.0,97022.0,0.1267]
[1738875006682,0.000107,97025.0,97022.0,0.22920365]
[1738875006858,0.000107,97025.0,97024.0,0.1546]
[1738875007058,0.000107,97025.0,97024.0,0.25710365]
[1738875008357,0.000107,97025.0,97024.0,0.10250365]
[1738875008585,0.154706,97025.0,97024.0,0.007]
[1738875009031,0.154706,97025.0,97024.0,0.009]
[1738875009610,0.327706,97025.0,97024.0,0.009]
[1738875009815,0.4223134,97025.0,97024.0,0.009]
[1738875010033,0.43257735,97025.0,97024.0,0.009]
[1738875010236,0.535081,97025.0,97024.0,0.009]
[1738875010754,0.535081,97025.0,97024.0,0.002]
[1738875010954,0.304632,97004.0,97003.0,0.0002247]
[1738875011207,0.327632,97004.0,97003.0,0.0002247]
[1738875011728,0.19290965,97013.0,97003.0,0.10272835]
[1738875011948,0.19290965,97020.0,97005.0,0.08]
[1738875012152,0.154628,97007.0,97006.0,0.10250365]
[1738875012945,0.154627,97008.0,97006.0,0.10250365]
[1738875014366,0.154627,97008.0,97006.0,0.10550365]
[1738875014575,0.154627,97008.0,97006.0,0.10650365]
[1738875014778,0.154627,97008.0,97006.0,0.10350365]
[1738875015086,0.154627,97008.0,97006.0,0.10550365]
[1738875015488,0.15,97019.0,97006.0,0.10650365]
[1738875015668,0.154628,97007.0,97006.0,0.10650365]
[1738875016143,0.154628,97007.0,97006.0,0.10550365]
[1738875016334,0.154628,97007.0,97006.0,0.10250365]
[1738875016470,0.154624,97009.0,97006.0,0.10250365]
[1738875016678,0.206165,97010.0,97006.0,0.10650365]
[1738875016884,0.15461,97018.0,97006.0,0.10250365]
[1738875017198,0.206139,97022.0,97011.0,0.15462]
[1738875017387,0.206139,97022.0,97009.0,0.206166]
[1738875017388,0.19290965,97030.0,97012.0,0.10250365]
[1738875017577,0.206136,97023.0,97012.0,0.10250365]
[1738875017780,0.206124,97029.0,97012.0,0.10250365]
[1738875018005,0.154595,97028.0,97021.0,0.154605]
[1738875018210,0.19290965,97040.0,97012.0,0.10250365]
[1738875018211,0.154579,97038.0,97024.0,0.47164436]
[1738875018422,0.0001069,97042.0,97024.0,0.47164436]
[1738875018423,0.0001069,97042.0,97024.0,0.38830365]
[1738875019116,0.0001069,97042.0,97041.0,0.154573]
[1738875019315,0.0001069,97042.0,97041.0,0.18040365]
[1738875019517,0.1546789,97042.0,97041.0,0.18040365]
[1738875020330,0.0001069,97042.0,97041.0,0.18040365]
[1738875020538,0.0001069,97042.0,97041.0,0.33497665]
[1738875021342,0.0001069,97042.0,97041.0,0.33997665]
[1738875021588,0.0001069,97042.0,97041.0,0.18540365]
[1738875021782,0.0001069,97042.0,97041.0,0.18740365]
[1738875022522,0.0001069,97042.0,97041.0,0.19112365]
[1738875023169,0.1546789,97042.0,97041.0,0.18940365]
[1738875023863,0.1546789,97042.0,97041.0,0.18040365]
[1738875024183,0.1546789,97042.0,97041.0,0.18840365]
[1738875024565,0.1546789,97042.0,97041.0,0.18040365]
[1738875024974,0.1546789,97042.0,97041.0,0.18140365]
[1738875025821,0.1546789,97042.0,97041.0,0.10750365]
[1738875026580,0.1546789,97042.0,97041.0,0.10350365]
[1738875026762,0.206093,97044.0,97042.0,0.0453211]
[1738875026965,0.206093,97044.0,97043.0,0.10250365]
[1738875026966,0.304569,97044.0,97043.0,0.10250365]
[1738875028013,0.15,97044.0,97043.0,0.10250365]
[1738875028212,0.206066,97057.0,97043.0,0.10250365]
[1738875028414,0.206068,97056.0,97043.0,0.10250365]
[1738875028747,0.00644535,97054.0,97043.0,0.10350365]
[1738875028906,0.154562,97049.0,97043.0,0.10350365]
[1738875029112,0.154564,97047.0,97043.0,0.10450365]
[1738875029318,0.154564,97047.0,97043.0,0.10350365]
[1738875029539,0.154566,97046.0,97043.0,0.10350365]
[1738875029695,0.154569,97044.0,97043.0,0.10350365]
[1738875029890,0.154569,97044.0,97043.0,0.10250365]
[1738875030215,0.304569,97044.0,97043.0,0.10850365]
[1738875030407,0.304569,97044.0,97043.0,0.006]
[1738875030634,0.15457,97043.0,97042.0,0.0453211]
[1738875030834,0.15457,97043.0,97042.0,0.14782475]
[1738875031034,0.17757,97043.0,97042.0,0.0453211]
[1738875031389,0.267001,97043.0,97042.0,0.0453211]
[1738875032004,0.28232225,97043.0,97042.0,0.0453211]
[1738875032138,0.19289125,97043.0,97042.0,0.0453211]
[1738875033263,0.20334006,97043.0,97042.0,0.0463211]
[1738875033489,0.01532125,97043.0,97042.0,0.14882475]
[1738875033897,0.00644612,97043.0,97042.0,0.14882475]
[1738875034093,0.00644612,97043.0,97042.0,0.14782475]
[1738875034306,0.1698486,97043.0,97042.0,0.14882475]
[1738875034509,0.1928486,97043.0,97042.0,0.0463211]
[1738875035231,0.1928486,97043.0,97042.0,0.0453211]
[1738875035417,0.1928486,97043.0,97042.0,0.0483211]
[1738875035620,0.1928486,97043.0,97042.0,0.0453211]
[1738875036710,0.1928486,97043.0,97042.0,0.0493211]
[1738875037105,0.1928486,97043.0,97042.0,0.0483211]
[1738875037330,0.0152786,97043.0,97042.0,0.15082475]
[1738875037507,0.1928486,97043.0,97042.0,0.0473211]
[1738875037689,0.23275326,97043.0,97042.0,0.0473211]
[1738875038092,0.1928486,97043.0,97042.0,0.0473211]
[1738875038375,0.1928486,97043.0,97042.0,0.0453211]
[1738875038651,0.0152786,97043.0,97042.0,0.14782475]
[1738875038852,0.0152786,97043.0,97042.0,0.15282475]
[1738875039124,0.1698486,97043.0,97042.0,0.14782475]
[1738875039325,0.16983641,97043.0,97042.0,0.15182475]
[1738875039683,0.01526641,97043.0,97042.0,0.14782475]
[1738875040004,0.00644612,97043.0,97042.0,0.14782475]
[1738875040682,0.17019468,97043.0,97042.0,0.14782475]
[1738875041242,0.17019468,97043.0,97042.0,0.14982475]
[1738875042729,0.01562468,97043.0,97042.0,0.14982475]
[1738875042945,0.00644612,97043.0,97042.0,0.30439675]
[1738875043125,0.00644612,97043.0,97042.0,0.38569675]
[1738875043303,0.00644612,97043.0,97042.0,0.23112475]
[1738875043501,0.00644612,97043.0,97042.0,0.38569675]
[1738875043748,0.000107,97049.0,97042.0,0.23134924]
[1738875043925,0.154569,97044.0,97043.0,0.10250365]
[1738875044310,0.32757,97043.0,97042.0,0.04754559]
[1738875044757,0.32757,97043.0,97042.0,0.04554559]
[1738875044909,0.32757,97043.0,97042.0,0.04654559]
[1738875045114,0.32757,97043.0,97042.0,0.04154559]
[1738875045417,0.42476328,97043.0,97042.0,0.04154559]
[1738875046567,0.43121008,97043.0,97042.0,0.04054559]
[1738875048407,0.3340168,97043.0,97042.0,0.04054559]
[1738875048793,0.3340168,97043.0,97042.0,0.02360037]
[1738875049433,0.43652045,97043.0,97042.0,0.02360037]
[1738875049956,0.57682045,97043.0,97042.0,0.02360037]
[1738875050076,0.58780009,97043.0,97042.0,0.02360037]
[1738875050276,0.7031993,97043.0,97042.0,0.02360037]
[1738875051050,0.7041993,97043.0,97042.0,0.02360037]
[1738875051407,0.023,97037.0,97003.0,0.0002247]
[1738875051611,0.154624,97009.0,97003.0,0.0002247]
[1738875051812,0.177624,97009.0,97003.0,0.0002247]
[1738875052009,0.023,97008.0,97003.0,0.0002247]
[1738875056170,0.154632,97004.0,97003.0,0.0032247]
[1738875056730,0.0064468,97004.0,97003.0,0.10572835]
[1738875056866,0.1610788,97004.0,97003.0,0.10572835]
[1738875057044,0.1610788,97004.0,97003.0,0.10472835]
[1738875057505,0.17011064,97004.0,97003.0,0.10572835]
[1738875057693,0.248972,97004.0,97003.0,0.10572835]
[1738875057943,0.2425252,97004.0,97003.0,0.10572835]
[1738875058080,0.2425252,97004.0,97003.0,0.10372835]
[1738875058389,0.00903184,97004.0,97003.0,0.25936235]
[1738875058560,0.19309058,97030.0,97003.0,0.23222835]
[1738875058761,0.154625,97009.0,97004.0,0.10250365]
[1738875059015,0.154622,97011.0,97004.0,0.10250365]
[1738875059269,0.19309058,97020.0,97006.0,0.154628]
[1738875059472,0.23301314,97020.0,97007.0,0.10250365]
[1738875059617,0.19309058,97030.0,97007.0,0.10250365]
[1738875059818,0.154604,97022.0,97015.0,0.154613]
[1738875060020,0.154612,97017.0,97016.0,0.10250365]
[1738875060200,0.023,97027.0,97004.0,0.003]
[1738875060404,0.154631,97005.0,97004.0,0.003]
[1738875060615,0.154631,97005.0,97004.0,0.10550365]
[1738875060870,0.154631,97005.0,97004.0,0.003]
[1738875060871,0.177631,97005.0,97004.0,0.003]
[1738875061060,0.2572442,97005.0,97004.0,0.003]
[1738875061500,0.177631,97005.0,97004.0,0.003]
[1738875061737,0.177631,97005.0,97003.0,0.0002247]
[1738875061738,0.177632,97004.0,97003.0,0.0002247]
[1738875061937,0.154632,97004.0,97003.0,0.0002247]
[1738875062866,0.154632,97004.0,97003.0,0.0012247]
[1738875063070,0.15463,97006.0,97003.0,0.0012247]
[1738875063296,0.2113257,97006.0,97003.0,0.0002247]
[1738875063502,0.154631,97005.0,97003.0,0.0002247]
[1738875063674,0.154631,97005.0,97003.0,0.0022247]
[1738875063879,0.154632,97004.0,97003.0,0.0022247]
[1738875065137,0.154632,97004.0,97003.0,0.0002247]
[1738875065274,0.21184467,97004.0,97003.0,0.0002247]
[1738875065491,0.21184467,97004.0,97003.0,0.0082247]
[1738875065688,0.38484467,97004.0,97003.0,0.0022247]
[1738875065913,0.38484467,97004.0,97003.0,0.0002247]
[1738875066865,0.39524866,97004.0,97003.0,0.0002247]
[1738875067106,0.49775231,97004.0,97003.0,7e-07]
[1738875067311,0.81815231,97004.0,97003.0,7e-07]
[1738875067487,0.83460215,97004.0,97003.0,7e-07]
[1738875068453,0.92880215,97004.0,97003.0,7e-07]
[1738875068856,0.92780215,97004.0,97003.0,7e-07]
[1738875069251,0.90980215,97004.0,97003.0,7e-07]
[1738875069792,0.92780215,97004.0,97003.0,7e-07]
[1738875069993,0.93080215,97004.0,97003.0,0.0010007]
[1738875070382,0.93080215,97004.0,97003.0,7e-07]
[1738875071204,0.92780215,97004.0,97003.0,7e-07]
[1738875071762,0.327647,96995.0,96981.0,0.08334071]
[1738875071891,0.43015065,96995.0,96981.0,0.08334071]
[1738875072406,0.43947922,96995.0,96981.0,0.08334071]
[1738875073052,0.75987922,96995.0,96981.0,0.08334071]
[1738875073232,0.76187922,96995.0,96981.0,0.08334071]
[1738875073437,0.86438287,96995.0,96981.0,0.08334071]
[1738875073649,0.86438287,96995.0,96975.0,0.00022407]
[1738875073650,0.304677,96976.0,96975.0,0.00022407]
[1738875073840,0.327677,96976.0,96975.0,0.00022407]
[1738875074014,0.33687565,96976.0,96975.0,0.00022407]
[1738875074223,0.4393793,96976.0,96975.0,0.00022407]
[1738875075630,0.54833449,96976.0,96975.0,0.00022407]
[1738875075841,0.164683,96972.0,96971.0,7e-08]
[1738875076089,0.29018665,96972.0,96971.0,7e-08]
[1738875076349,0.52951073,96972.0,96971.0,7e-08]
[1738875076957,0.51951073,96972.0,96971.0,7e-08]
[1738875077155,0.52596227,96972.0,96971.0,7e-08]
[1738875078064,0.84636227,96972.0,96971.0,7e-08]
[1738875078464,0.87036227,96972.0,96971.0,7e-08]
[1738875078679,0.85936227,96972.0,96971.0,7e-08]
[1738875079015,0.314702,96960.0,96959.0,7e-08]
[1738875079187,0.304726,96945.0,96937.0,0.08356499]
[1738875079341,0.625126,96945.0,96937.0,0.08356499]
[1738875079536,0.65734094,96945.0,96937.0,0.08356499]
[1738875079792,0.75984459,96945.0,96937.0,0.00022428]
[1738875080146,0.76629613,96945.0,96937.0,0.00022428]
[1738875081444,0.64079248,96945.0,96944.0,0.07832428]
[1738875081644,0.33606648,96945.0,96944.0,0.07832428]
[1738875081794,0.49279248,96945.0,96944.0,0.07832428]
[1738875082008,0.49079248,96945.0,96944.0,0.07832428]
[1738875082173,0.49179248,96945.0,96944.0,0.07832428]
[1738875082368,0.58423103,96945.0,96944.0,0.07832428]
[1738875082567,0.58123103,96945.0,96944.0,0.07832428]
[1738875082792,0.58491997,96945.0,96944.0,0.07832428]